Service area,Service sub division,TVBC Service,Expense type,Detailed expense type,TVBC account code,Date Paid,Transaction Reference, Nett Value ,Supplier Name
Environmental & Regulatory,Regulatory Services,Estates and Economic Development ,Premises related Expenditure,Cleaning and domestic supplies,Contract Cleaning - Non Estates,28/06/2018,238797,-638.74,Aviva Life & Pensions Uk Ltd
"Highways, Roads & Transport",Parking Services,Plan Pol & Transport,Supplies & Services,Services,Professional Fees,28/06/2018,238797,-1642.48,Aviva Life & Pensions Uk Ltd
Cultural & Related,Recreation & Sport,Community and Leisure ,Premises related Expenditure,Cleaning and domestic supplies,Contract Cleaning - Non Estates,07/06/2018,243730,-244.74,Hi-Spec Facilities Services Plc
Cultural & Related,Recreation & Sport,Community and Leisure ,Premises related Expenditure,Cleaning and domestic supplies,Contract Cleaning - Non Estates,07/06/2018,243730,-244.74,Hi-Spec Facilities Services Plc
Environmental & Regulatory,"Cemetery, Cremation and Mortuary Services",Community and Leisure ,Premises related Expenditure,Cleaning and domestic supplies,Contract Cleaning - Non Estates,07/06/2018,243730,-69,Hi-Spec Facilities Services Plc
Central Services to the Public,Management & Support Services,Estates and Economic Development ,Supplies & Services,Miscellaneous Expenses,Health And Safety,14/06/2018,241002,-351,Invicta Lifeline Ltd
Cultural & Related,Open Spaces,Environmental,Supplies & Services,Miscellaneous Expenses,Health And Safety,14/06/2018,241002,-156,Invicta Lifeline Ltd
Planning & Development,Economic Development,Estates and Economic Development ,Supplies & Services,Services,Training Courses,28/06/2018,245054,500,Bowyer Engineering Ltd
Central Services to the Public,Management & Support Services,Estates and Economic Development ,Supplies & Services,"Equipment, Furniture & Materials",Purchase Materials (Job Cost),07/06/2018,243717,427,Hall & Pickles
Central Services to the Public,Management & Support Services,Estates and Economic Development ,Supplies & Services,"Equipment, Furniture & Materials",Purchase Materials (Job Cost),07/06/2018,244002,436.32,Cjs Portsmouth Ltd
Housing Services,Homelessness,Housing and Environmental Health ,Supplies & Services,Miscellaneous Expenses,Bed & Breakfast,07/06/2018,243409,525,Cabin B & B
Housing Services,Homelessness,Housing and Environmental Health ,Supplies & Services,Miscellaneous Expenses,Bed & Breakfast,07/06/2018,244018,525,Cabin B & B
Housing Services,Homelessness,Housing and Environmental Health ,Supplies & Services,Miscellaneous Expenses,Bed & Breakfast,14/06/2018,244269,525,Cabin B & B
Cultural & Related,Culture & Heritage,Community and Leisure ,Supplies & Services,"Printing, Stationery & General Office Expenses",Photocopying Costs,07/06/2018,243661,464.56,Ricoh Uk Ltd
External Trading Accounts,Property Investments,Estates and Economic Development ,Premises related Expenditure,Grounds Maintenance Costs,Grounds Maintenance Contracts,28/06/2018,245013,473.19,Landmarks Sustainability Ltd
Central Services to the Public,Management & Support Services,Revenues,Supplies & Services,"Equipment, Furniture & Materials",Equipment Lease Rentals,07/06/2018,243662,47.61,Ricoh Uk Ltd
Central Services to the Public,Local Tax Collection,Revenues,Supplies & Services,"Equipment, Furniture & Materials",Equipment Lease Rentals,07/06/2018,243662,47.6,Ricoh Uk Ltd
Central Services to the Public,Local Tax Collection,Revenues,Supplies & Services,"Equipment, Furniture & Materials",Equipment Lease Rentals,07/06/2018,243662,190.41,Ricoh Uk Ltd
Housing Services,Housing Benefits ,Revenues,Supplies & Services,"Equipment, Furniture & Materials",Equipment Lease Rentals,07/06/2018,243662,95.2,Ricoh Uk Ltd
Central Services to the Public,Local Tax Collection,Revenues,Supplies & Services,"Equipment, Furniture & Materials",Equipment Lease Rentals,07/06/2018,243662,95.2,Ricoh Uk Ltd
External Trading Accounts,Business Parks,Estates and Economic Development ,Premises related Expenditure,Repairs Alterations & Maintenance of Buildings,Estates premises costs - AMP,21/06/2018,244729,250,Gibson & Co Ceilings
Central Services to the Public,Management & Support Services,Estates and Economic Development ,Third Party Payments,Other Establishments,Private Contractors,21/06/2018,244729,245,Gibson & Co Ceilings
Central Services to the Public,Management & Support Services,Estates and Economic Development ,Third Party Payments,Other Establishments,Private Contractors,07/06/2018,243721,500,Protec Roofing Southern Ltd
Central Services to the Public,Management & Support Services,Estates and Economic Development ,Third Party Payments,Other Establishments,Private Contractors,07/06/2018,244049,500,Protec Roofing Southern Ltd
Cultural & Related,Culture & Heritage,Community and Leisure ,Supplies & Services,Miscellaneous Expenses,Booking Of Acts,14/06/2018,244301,500,Avalon Management Group Ltd
Cultural & Related,Culture & Heritage,Community and Leisure ,Supplies & Services,Miscellaneous Expenses,Booking Of Acts,14/06/2018,244302,500,Avalon Management Group Ltd
External Trading Accounts,Business Parks,Estates and Economic Development ,Supplies & Services,Communications & Computing,Land Line Telephone Charges,28/06/2018,245256,26.69,Virgin Media Payments Ltd
Cultural & Related,Culture & Heritage,Estates and Economic Development ,Supplies & Services,Communications & Computing,Land Line Telephone Charges,28/06/2018,245256,26,Virgin Media Payments Ltd
Cultural & Related,Culture & Heritage,Estates and Economic Development ,Supplies & Services,Communications & Computing,Land Line Telephone Charges,28/06/2018,245256,39.34,Virgin Media Payments Ltd
Central Services to the Public,Management & Support Services,IT,Supplies & Services,Communications & Computing,Communication Links,28/06/2018,245256,26,Virgin Media Payments Ltd
Central Services to the Public,Management & Support Services,IT,Supplies & Services,Communications & Computing,Communication Links,28/06/2018,245256,67,Virgin Media Payments Ltd
Cultural & Related,Recreation & Sport,Community and Leisure ,Supplies & Services,Communications & Computing,Land Line Telephone Charges,28/06/2018,245256,26,Virgin Media Payments Ltd
Cultural & Related,Recreation & Sport,Community and Leisure ,Supplies & Services,Communications & Computing,Land Line Telephone Charges,28/06/2018,245256,13.08,Virgin Media Payments Ltd
Cultural & Related,Recreation & Sport,Community and Leisure ,Supplies & Services,Communications & Computing,Land Line Telephone Charges,28/06/2018,245256,13,Virgin Media Payments Ltd
Cultural & Related,Culture & Heritage,Community and Leisure ,Supplies & Services,Communications & Computing,Communication Links,28/06/2018,245256,74.15,Virgin Media Payments Ltd
"Highways, Roads & Transport",Parking Services,Plan Pol & Transport,Supplies & Services,Communications & Computing,Alarm Lines,28/06/2018,245256,37,Virgin Media Payments Ltd
Central Services to the Public,Management & Support Services,Environmental,Supplies & Services,Communications & Computing,Land Line Telephone Charges,28/06/2018,245256,65.99,Virgin Media Payments Ltd
Central Services to the Public,Emergency Planning,Corporate & Democratic,Supplies & Services,Communications & Computing,Land Line Telephone Charges,28/06/2018,245256,91,Virgin Media Payments Ltd
External Trading Accounts,Business Parks,Estates and Economic Development ,Supplies & Services,Communications & Computing,Land Line Telephone Charges,07/06/2018,244032,27.09,Virgin Media Payments Ltd
Cultural & Related,Culture & Heritage,Estates and Economic Development ,Supplies & Services,Communications & Computing,Land Line Telephone Charges,07/06/2018,244032,26,Virgin Media Payments Ltd
Cultural & Related,Culture & Heritage,Estates and Economic Development ,Supplies & Services,Communications & Computing,Land Line Telephone Charges,07/06/2018,244032,39.74,Virgin Media Payments Ltd
Central Services to the Public,Management & Support Services,IT,Supplies & Services,Communications & Computing,Communication Links,07/06/2018,244032,26,Virgin Media Payments Ltd
Central Services to the Public,Management & Support Services,IT,Supplies & Services,Communications & Computing,Communication Links,07/06/2018,244032,67,Virgin Media Payments Ltd
Cultural & Related,Recreation & Sport,Community and Leisure ,Supplies & Services,Communications & Computing,Land Line Telephone Charges,07/06/2018,244032,26,Virgin Media Payments Ltd
Cultural & Related,Recreation & Sport,Community and Leisure ,Supplies & Services,Communications & Computing,Land Line Telephone Charges,07/06/2018,244032,13.2,Virgin Media Payments Ltd
Cultural & Related,Recreation & Sport,Community and Leisure ,Supplies & Services,Communications & Computing,Land Line Telephone Charges,07/06/2018,244032,13,Virgin Media Payments Ltd
Cultural & Related,Culture & Heritage,Community and Leisure ,Supplies & Services,Communications & Computing,Communication Links,07/06/2018,244032,74.09,Virgin Media Payments Ltd
"Highways, Roads & Transport",Parking Services,Plan Pol & Transport,Supplies & Services,Communications & Computing,Alarm Lines,07/06/2018,244032,37,Virgin Media Payments Ltd
Central Services to the Public,Management & Support Services,Environmental,Supplies & Services,Communications & Computing,Land Line Telephone Charges,07/06/2018,244032,66.68,Virgin Media Payments Ltd
Central Services to the Public,Emergency Planning,Corporate & Democratic,Supplies & Services,Communications & Computing,Land Line Telephone Charges,07/06/2018,244032,91,Virgin Media Payments Ltd
Central Services to the Public,Management & Support Services,Estates and Economic Development ,Supplies & Services,Miscellaneous Expenses,Health And Safety,14/06/2018,244481,351,Invicta Lifeline Ltd
Cultural & Related,Open Spaces,Environmental,Supplies & Services,Miscellaneous Expenses,Health And Safety,14/06/2018,244481,156,Invicta Lifeline Ltd
Central Services to the Public,Management & Support Services,IT,Supplies & Services,Grants & Subscriptions,Subscriptions,07/06/2018,241290,525,Northern Housing Consortium Ltd
Environmental & Regulatory,Waste management,Environmental,Employees,Indirect Employee Expenses,Agency Staff - Waged Posts,14/06/2018,241289,273.91,Simple Recruitment Services Ltd
Environmental & Regulatory,Waste management,Environmental,Employees,Indirect Employee Expenses,Agency Staff - Waged Posts,14/06/2018,241289,263.06,Simple Recruitment Services Ltd
Central Services to the Public,Management & Support Services,Housing and Environmental Health ,Supplies & Services,"Equipment, Furniture & Materials",Purchase Equip + Materials,07/06/2018,243658,537.45,Ricoh Uk Ltd
"Highways, Roads & Transport",Parking Services,Plan Pol & Transport,Premises related Expenditure,Repairs Alterations & Maintenance of Buildings,Car Park General Repairs,28/06/2018,245067,646,Aviva Life & Pensions Uk Ltd
Central Services to the Public,Management & Support Services,Legal & Democratic,Employees,Indirect Employee Expenses,Agency Staff - Waged Posts,28/06/2018,244587,540,Venn Group
Environmental & Regulatory,Waste management,Environmental,Transport Related Expenditure,Direct Transport Costs,Repair Materials,21/06/2018,244748,94.06,Dennis Eagle Ltd
Central Services to the Public,Management & Support Services,Environmental,Transport Related Expenditure,Direct Transport Costs,Repair Materials,21/06/2018,244748,450.66,Dennis Eagle Ltd
Cultural & Related,Open Spaces,Environmental,Employees,Indirect Employee Expenses,Agency Staff - Waged Posts,07/06/2018,243890,548.99,Golden Orb Solutions
Cultural & Related,Culture & Heritage,Estates and Economic Development ,Supplies & Services,Miscellaneous Expenses,Waste Collection,28/06/2018,245011,163.3,Suez Recycling And Recovery Uk Ltd
Central Services to the Public,Management & Support Services,Estates and Economic Development ,Supplies & Services,Miscellaneous Expenses,Waste Collection,28/06/2018,245011,386.37,Suez Recycling And Recovery Uk Ltd
Central Services to the Public,Management & Support Services,Estates and Economic Development ,Supplies & Services,Miscellaneous Expenses,Health And Safety,21/06/2018,244721,550,Hcs Safety Ltd
Central Services to the Public,Management & Support Services,Estates and Economic Development ,Supplies & Services,Miscellaneous Expenses,Health And Safety,21/06/2018,244722,550,Hcs Safety Ltd
Central Services to the Public,Management & Support Services,Estates and Economic Development ,Supplies & Services,Miscellaneous Expenses,Health And Safety,21/06/2018,244723,550,Hcs Safety Ltd
Central Services to the Public,Management & Support Services,Estates and Economic Development ,Supplies & Services,Miscellaneous Expenses,Health And Safety,21/06/2018,244724,550,Hcs Safety Ltd
Central Services to the Public,Management & Support Services,Estates and Economic Development ,Supplies & Services,Miscellaneous Expenses,Health And Safety,21/06/2018,244725,550,Hcs Safety Ltd
Planning & Development,Development Control,Planning & Building,Supplies & Services,Services,Training Courses,07/06/2018,243708,553.5,Lsr Solicitors & Planning Consultants
Planning & Development,Community Development,Community and Leisure ,Supplies & Services,Grants & Subscriptions,Grants,21/06/2018,244871,666,North Baddesley P C
Cultural & Related,Open Spaces,Community and Leisure ,Premises related Expenditure,Grounds Maintenance Costs,Gm - Additional Works,07/06/2018,243710,565,Purbeck Civil Engineering Limited
Environmental & Regulatory,Waste management,Environmental,Employees,Indirect Employee Expenses,Agency Staff - Waged Posts,07/06/2018,244013,569.76,Abacus Employment Services Ltd
Central Services to the Public,Management & Support Services,Revenues,Supplies & Services,"Equipment, Furniture & Materials",Purchase Furniture,28/06/2018,245115,570,Spectrum Workplace Llp
Cultural & Related,Culture & Heritage,Community and Leisure ,Supplies & Services,"Printing, Stationery & General Office Expenses",Postage Costs,14/06/2018,244311,581.66,Royal Mail
Central Services to the Public,Local Tax Collection,Revenues,Employees,Indirect Employee Expenses,Post Entry Training,21/06/2018,244750,590,Irrv Hq
Central Services to the Public,Management & Support Services,Estates and Economic Development ,Third Party Payments,Private contractors,Main Contractor Costs,21/06/2018,244732,600,Daniells Harrison Surveyors Llp
Planning & Development,Development Control,Planning & Building,Supplies & Services,"Printing, Stationery & General Office Expenses",Photocopying Costs,07/06/2018,243659,601.02,Ricoh Uk Ltd
Central Services to the Public,Local Tax Collection,Revenues,Supplies & Services,"Equipment, Furniture & Materials",Maintenance Equip + Materials,28/06/2018,244677,91.8,Twofold Limited
Central Services to the Public,Local Tax Collection,Revenues,Supplies & Services,"Equipment, Furniture & Materials",Maintenance Equip + Materials,28/06/2018,244677,214.17,Twofold Limited
Housing Services,Housing Benefits ,Revenues,Supplies & Services,"Equipment, Furniture & Materials",Maintenance Equip + Materials,28/06/2018,244677,152.97,Twofold Limited
Central Services to the Public,Local Tax Collection,Revenues,Supplies & Services,"Equipment, Furniture & Materials",Maintenance Equip + Materials,28/06/2018,244677,152.97,Twofold Limited
Central Services to the Public,Management & Support Services,Estates and Economic Development ,Transport Related Expenditure,Direct Transport Costs,Petrol,07/06/2018,243888,5.59,Fuel Card Services Ltd
Cultural & Related,Open Spaces,Environmental,Transport Related Expenditure,Direct Transport Costs,Petrol,07/06/2018,243888,619.2,Fuel Card Services Ltd
Housing Services,Housing Benefits ,Revenues,Supplies & Services,Services,External Training Consultants,27/06/2018,244744,312,Airey Consultancy Services Ltd
Central Services to the Public,Local Tax Collection,Revenues,Supplies & Services,Services,External Training Consultants,27/06/2018,244744,313,Airey Consultancy Services Ltd
"Highways, Roads & Transport",Parking Services,Plan Pol & Transport,Supplies & Services,Services,Professional Fees,28/06/2018,245073,750,Aviva Life & Pensions Uk Ltd
Planning & Development,Economic Development,Estates and Economic Development ,Supplies & Services,Grants & Subscriptions,Grants,20/06/2018,244781,750,Personal data - Data Protection Act 1998
Planning & Development,Economic Development,Estates and Economic Development ,Supplies & Services,Grants & Subscriptions,Grants,06/06/2018,243925,750,Alma Law Limited
Planning & Development,Economic Development,Estates and Economic Development ,Supplies & Services,Grants & Subscriptions,Grants,13/06/2018,244322,750,Personal data - Data Protection Act 1998
Planning & Development,Economic Development,Estates and Economic Development ,Supplies & Services,Grants & Subscriptions,Grants,13/06/2018,244323,750,Personal data - Data Protection Act 1998
Environmental & Regulatory,Regulatory Services,Housing and Environmental Health ,Supplies & Services,Grants and subscriptions,Capital Grants,28/06/2018,245361,767.32,Andover Glass Works Ltd
Central Services to the Public,Management & Support Services,Estates and Economic Development ,Premises related Expenditure,Energy Costs,Gas,07/06/2018,243666,642.91,Total Gas & Power Ltd
External Trading Accounts,Business Parks,Estates and Economic Development ,Premises related Expenditure,Repairs Alterations & Maintenance of Buildings,Building Maint - Non Estates,28/06/2018,245353,643.99,Doorgear Limited
Environmental & Regulatory,Regulatory Services,Housing and Environmental Health ,Supplies & Services,Grants and subscriptions,Capital Grants,14/06/2018,244486,784,Epw Construction
Cultural & Related,Culture & Heritage,Community and Leisure ,Supplies & Services,Miscellaneous Expenses,Booking Of Acts,28/06/2018,245110,810.62,Baroque Theatre Company
External Trading Accounts,Business Parks,Estates and Economic Development ,Supplies & Services,Miscellaneous Expenses,Waste Collection,07/06/2018,244000,678.1,Basingstoke Skip Hire & Sthrn Waste Mgt Ltd
Central Services to the Public,Management & Support Services,Finance,Supplies & Services,"Printing, Stationery & General Office Expenses",Postage Costs,14/06/2018,244026,683.64,Whistl Uk Ltd
Central Services to the Public,Management & Support Services,Estates and Economic Development ,Supplies & Services,Communications & Computing,Telephone Tracking System,07/06/2018,243895,48,Teletrac Navman (Uk) Ltd
Environmental & Regulatory,Regulatory Services,Housing and Environmental Health ,Supplies & Services,Communications & Computing,Telephone Tracking System,07/06/2018,243895,6,Teletrac Navman (Uk) Ltd
Environmental & Regulatory,Regulatory Services,Housing and Environmental Health ,Supplies & Services,Communications & Computing,Telephone Tracking System,07/06/2018,243895,12,Teletrac Navman (Uk) Ltd
Cultural & Related,Open Spaces,Community and Leisure ,Supplies & Services,Communications & Computing,Telephone Tracking System,07/06/2018,243895,6,Teletrac Navman (Uk) Ltd
Cultural & Related,Open Spaces,Community and Leisure ,Supplies & Services,Communications & Computing,Telephone Tracking System,07/06/2018,243895,6,Teletrac Navman (Uk) Ltd
"Highways, Roads & Transport",Parking Services,Plan Pol & Transport,Supplies & Services,Communications & Computing,Telephone Tracking System,07/06/2018,243895,12,Teletrac Navman (Uk) Ltd
Cultural & Related,Open Spaces,Environmental,Supplies & Services,Communications & Computing,Telephone Tracking System,07/06/2018,243895,246,Teletrac Navman (Uk) Ltd
Environmental & Regulatory,Street Cleansing (not chargeable to Highways),Environmental,Supplies & Services,Communications & Computing,Telephone Tracking System,07/06/2018,243895,181.2,Teletrac Navman (Uk) Ltd
Environmental & Regulatory,Waste management,Environmental,Supplies & Services,Communications & Computing,Telephone Tracking System,07/06/2018,243895,138.7,Teletrac Navman (Uk) Ltd
Environmental & Regulatory,Waste management,Environmental,Supplies & Services,Communications & Computing,Telephone Tracking System,07/06/2018,243895,12,Teletrac Navman (Uk) Ltd
Central Services to the Public,Management & Support Services,Environmental,Supplies & Services,Communications & Computing,Telephone Tracking System,07/06/2018,243895,18,Teletrac Navman (Uk) Ltd
Central Services to the Public,Management & Support Services,Estates and Economic Development ,Supplies & Services,Communications & Computing,Telephone Tracking System,28/06/2018,245025,48,Teletrac Navman (Uk) Ltd
Environmental & Regulatory,Regulatory Services,Housing and Environmental Health ,Supplies & Services,Communications & Computing,Telephone Tracking System,28/06/2018,245025,6,Teletrac Navman (Uk) Ltd
Environmental & Regulatory,Regulatory Services,Housing and Environmental Health ,Supplies & Services,Communications & Computing,Telephone Tracking System,28/06/2018,245025,12,Teletrac Navman (Uk) Ltd
Cultural & Related,Open Spaces,Community and Leisure ,Supplies & Services,Communications & Computing,Telephone Tracking System,28/06/2018,245025,6,Teletrac Navman (Uk) Ltd
Cultural & Related,Open Spaces,Community and Leisure ,Supplies & Services,Communications & Computing,Telephone Tracking System,28/06/2018,245025,6,Teletrac Navman (Uk) Ltd
"Highways, Roads & Transport",Parking Services,Plan Pol & Transport,Supplies & Services,Communications & Computing,Telephone Tracking System,28/06/2018,245025,12,Teletrac Navman (Uk) Ltd
Cultural & Related,Open Spaces,Environmental,Supplies & Services,Communications & Computing,Telephone Tracking System,28/06/2018,245025,246,Teletrac Navman (Uk) Ltd
Environmental & Regulatory,Street Cleansing (not chargeable to Highways),Environmental,Supplies & Services,Communications & Computing,Telephone Tracking System,28/06/2018,245025,186.7,Teletrac Navman (Uk) Ltd
Environmental & Regulatory,Waste management,Environmental,Supplies & Services,Communications & Computing,Telephone Tracking System,28/06/2018,245025,138,Teletrac Navman (Uk) Ltd
Environmental & Regulatory,Waste management,Environmental,Supplies & Services,Communications & Computing,Telephone Tracking System,28/06/2018,245025,12,Teletrac Navman (Uk) Ltd
Central Services to the Public,Management & Support Services,Environmental,Supplies & Services,Communications & Computing,Telephone Tracking System,28/06/2018,245025,18,Teletrac Navman (Uk) Ltd
Central Services to the Public,Management & Support Services,IT,Supplies & Services,"Printing, Stationery & General Office Expenses",Photocopying Costs,28/06/2018,245077,690.93,Xerox (Uk) Ltd
Environmental & Regulatory,Waste management,Environmental,Transport Related Expenditure,Direct Transport Costs,Repair Materials,21/06/2018,244707,705,Dennis Eagle Ltd
Cultural & Related,Open Spaces,Environmental,Employees,Indirect Employee Expenses,Agency Staff - Waged Posts,07/06/2018,243891,714.22,Golden Orb Solutions
Environmental & Regulatory,Regulatory Services,Housing and Environmental Health ,Supplies & Services,Grants and subscriptions,Capital Grants,14/06/2018,244487,884,Epw Construction
Central Services to the Public,Management & Support Services,IT,Supplies & Services,"Equipment, Furniture & Materials",Maintenance Equip + Materials,21/06/2018,244680,741.67,Quadrant Security Group Ltd
Central Services to the Public,Management & Support Services,Estates and Economic Development ,Premises related Expenditure,Energy Costs,Gas,28/06/2018,245035,744.68,Total Gas & Power Ltd
Central Services to the Public,Management & Support Services,IT,Supplies & Services,"Equipment, Furniture & Materials",IT Supp and Serv AMP,07/06/2018,243728,750,Nuvola Distribution Ltd
Central Services to the Public,Management & Support Services,IT,Supplies & Services,"Equipment, Furniture & Materials",IT Supp and Serv AMP,07/06/2018,243729,750,Nuvola Distribution Ltd
Cultural & Related,Open Spaces,Environmental,Transport Related Expenditure,Direct Transport Costs,External Garages,28/06/2018,244753,660,T H White Ltd
Cultural & Related,Open Spaces,Environmental,Transport Related Expenditure,Direct Transport Costs,Repair Materials,28/06/2018,244753,105.14,T H White Ltd
Cultural & Related,Open Spaces,Environmental,Transport Related Expenditure,Direct Transport Costs,Repair Materials,07/06/2018,243650,768.64,R Hunt (Agricultural Engineers) Ltd
Central Services to the Public,Management & Support Services,Estates and Economic Development ,Employees,Indirect Employee Expenses,Advertising Of Vacancies,14/06/2018,244317,783.68,Newsquest Media Group Ltd
"Highways, Roads & Transport",Parking Services,Plan Pol & Transport,Employees,Indirect Employee Expenses,Advertising Of Vacancies,14/06/2018,244315,783.68,Newsquest Media Group Ltd
Environmental & Regulatory,Waste management,Environmental,Employees,Indirect Employee Expenses,Agency Staff - Waged Posts,28/06/2018,239012,783.7,Simple Recruitment Services Ltd
Central Services to the Public,Management & Support Services,Estates and Economic Development ,Third Party Payments,Other Establishments,Private Contractors,07/06/2018,243894,796.88,Clearwater 2010 Ltd
"Highways, Roads & Transport",Public Transport,Plan Pol & Transport,Third Party Payments,Transport Operators in Respect of Concessionary Fares,Voluntary Orgs Reimbursement,21/06/2018,244864,986,Romsey Good Neighbours
"Highways, Roads & Transport",Parking Services,Plan Pol & Transport,Premises related Expenditure,Repairs Alterations & Maintenance of Buildings,Car Park General Repairs,28/06/2018,245075,990,Aviva Life & Pensions Uk Ltd
Planning & Development,Community Development,Community and Leisure ,Supplies & Services,Grants & Subscriptions,Grants,21/06/2018,244872,1000,Andover Radio Ltd
Planning & Development,Community Development,Community and Leisure ,Supplies & Services,Grants & Subscriptions,Grants,07/06/2018,244040,1000,West Tytherley & Frenchmoor Pc
Planning & Development,Community Development,Community and Leisure ,Supplies & Services,Grants & Subscriptions,Grants,07/06/2018,244041,1000,Winton Community Academy
Central Services to the Public,Management & Support Services,Finance,Supplies & Services,"Printing, Stationery & General Office Expenses",Postage Costs,28/06/2018,245081,839.24,Whistl Uk Ltd
Planning & Development,Economic Development,Estates and Economic Development ,Supplies & Services,Services,Training Courses,21/06/2018,244736,1011.4,Multax
Central Services to the Public,Management & Support Services,IT,Support Services,IT,IT software maintenance,28/06/2018,241932,850,Northgate Public Services Uk Ltd
Cultural & Related,Culture & Heritage,Community and Leisure ,Supplies & Services,Miscellaneous Expenses,Booking Of Acts,28/06/2018,245214,866.66,K22 Productions Ltd
Planning & Development,Building Control,Planning & Building,Supplies & Services,Communications & Computing,Computer Hardware,07/06/2018,243517,885.2,Tet Ltd
Cultural & Related,Open Spaces,Environmental,Supplies & Services,"Equipment, Furniture & Materials",Purchases for playgrounds,28/06/2018,244714,886.5,Gb Sport & Leisure Uk Ltd
Environmental & Regulatory,Waste management,Environmental,Transport Related Expenditure,Direct Transport Costs,External Garages,21/06/2018,244022,899.95,Dennis Eagle Ltd
Cultural & Related,Culture & Heritage,Community and Leisure ,Supplies & Services,Catering,Non-Contract Catering,21/06/2018,244692,908.38,Carlsberg Uk Ltd
Central Services to the Public,Management & Support Services,Legal & Democratic,Employees,Indirect Employee Expenses,Agency Staff - Waged Posts,14/06/2018,244280,922.5,Venn Group
Central Services to the Public,Management & Support Services,Community and Leisure ,Supplies & Services,"Printing, Stationery & General Office Expenses",Photocopying Costs,14/06/2018,243663,923.09,Ricoh Uk Ltd
Central Services to the Public,Management & Support Services,Legal & Democratic,Employees,Indirect Employee Expenses,Agency Staff - Waged Posts,07/06/2018,243672,945,Venn Group
Central Services to the Public,Local Tax Collection,Revenues,Supplies & Services,Communications & Computing,Software Maintenance,14/06/2018,244046,950,Northgate Public Services Uk Ltd
"Highways, Roads & Transport",Highways and roads - maintenance,Plan Pol & Transport,Premises related Expenditure,Repairs Alterations & Maintenance of Buildings,Highways Repairs,20/06/2018,244779,950,Paris Smith Llp
Central Services to the Public,Management & Support Services,Estates and Economic Development ,Supplies & Services,Services,Training Courses,07/06/2018,244050,320,Hcs Safety Ltd
Central Services to the Public,Management & Support Services,Estates and Economic Development ,Supplies & Services,Services,Training Courses,07/06/2018,244050,640,Hcs Safety Ltd
Environmental & Regulatory,Waste management,Environmental,Supplies & Services,Miscellaneous Expenses,Recycling Campaign,28/06/2018,244768,960,Allwag Promotions Ltd
Central Services to the Public,Management & Support Services,IT,Supplies & Services,Communications & Computing,Land Line Telephone Charges,14/06/2018,244064,960.69,Virgin Media Payments Ltd
External Trading Accounts,Business Parks,Estates and Economic Development ,Premises related Expenditure,Repairs Alterations & Maintenance of Buildings,Planned Maintenance - Non Est,07/06/2018,243706,200,Healthy Buildings International
Cultural & Related,Culture & Heritage,Estates and Economic Development ,Premises related Expenditure,Repairs Alterations & Maintenance of Buildings,Building Maint - Non Estates,28/06/2018,245033,1200,Pentrevion Fire Ltd
Cultural & Related,Culture & Heritage,Estates and Economic Development ,Premises related Expenditure,Repairs Alterations & Maintenance of Buildings,Planned Maintenance - Non Est,07/06/2018,243706,250,Healthy Buildings International
Central Services to the Public,Management & Support Services,Estates and Economic Development ,Premises related Expenditure,Repairs Alterations & Maintenance of Buildings,Planned Maintenance - Non Est,07/06/2018,243707,250,Tls Fire & Security Llp
Central Services to the Public,Management & Support Services,Estates and Economic Development ,Premises related Expenditure,Repairs Alterations & Maintenance of Buildings,Planned Maintenance - Non Est,07/06/2018,243706,550,Healthy Buildings International
Central Services to the Public,Management & Support Services,Estates and Economic Development ,Premises related Expenditure,Repairs Alterations & Maintenance of Buildings,Planned Maintenance - Non Est,07/06/2018,243707,250,Tls Fire & Security Llp
Central Services to the Public,Management & Support Services,Estates and Economic Development ,Premises related Expenditure,Repairs Alterations & Maintenance of Buildings,Planned Maintenance - Non Est,07/06/2018,243707,250,Tls Fire & Security Llp
Central Services to the Public,Management & Support Services,Estates and Economic Development ,Premises related Expenditure,Repairs Alterations & Maintenance of Buildings,Planned Maintenance - Non Est,07/06/2018,243707,250,Tls Fire & Security Llp
Environmental & Regulatory,Waste management,Environmental,Transport Related Expenditure,Direct Transport Costs,Repair Materials,21/06/2018,244279,1003.26,Dennis Eagle Ltd
Cultural & Related,Open Spaces,Environmental,Transport Related Expenditure,Direct Transport Costs,Repair Materials,28/06/2018,244696,1005.7,Loxston Groundcare Ltd
Cultural & Related,Open Spaces,Environmental,Third Party Payments,Other Establishments,Private Contractors,28/06/2018,245219,1221.86,Ivan Gibson Agricultural Contractor
External Trading Accounts,Business Parks,Estates and Economic Development ,Premises related Expenditure,Repairs Alterations & Maintenance of Buildings,Estates premises costs - AMP,07/06/2018,244029,1031.4,Options Flooring Ltd
Planning & Development,Economic Development,Estates and Economic Development ,Supplies & Services,Grants & Subscriptions,Grants,07/06/2018,244001,1250,G T Marketing & Pr
Environmental & Regulatory,Waste management,Environmental,Employees,Indirect Employee Expenses,Agency Staff - Waged Posts,07/06/2018,242720,921.36,Simple Recruitment Services Ltd
Environmental & Regulatory,Waste management,Environmental,Employees,Indirect Employee Expenses,Agency Staff - Waged Posts,07/06/2018,242720,148.69,Simple Recruitment Services Ltd
Central Services to the Public,Management & Support Services,Chief Executive's,Employees,Indirect Employee Expenses,Temporary Staff,21/06/2018,244278,1071.68,Hays Specialist Recruitment
Planning & Development,Economic Development,Estates and Economic Development ,Supplies & Services,Services,Training Courses,21/06/2018,244712,1298,Artspace Interior Design Ltd
Central Services to the Public,Management & Support Services,Estates and Economic Development ,Premises related Expenditure,Cleaning and domestic supplies,Window Cleaning,07/06/2018,244052,1082,Allclean Windows Limited
Planning & Development,Development Control,Planning & Building,Third Party Payments,Commuted Sum,s106 Developer contributions,21/06/2018,244865,1300,Paul Ashton Ltd
Central Services to the Public,Management & Support Services,Finance,Supplies & Services,"Printing, Stationery & General Office Expenses",Postage Costs,07/06/2018,243516,1098.08,Whistl Uk Ltd
Central Services to the Public,Management & Support Services,Legal & Democratic,Employees,Indirect Employee Expenses,Agency Staff - Waged Posts,07/06/2018,243673,1102.5,Venn Group
Central Services to the Public,Management & Support Services,Estates and Economic Development ,Third Party Payments,Other Establishments,Contract Catering,28/06/2018,245000,1103.55,Edwards And Ward Ltd
Cultural & Related,Culture & Heritage,Community and Leisure ,Supplies & Services,Catering,Non-Contract Catering,21/06/2018,242477,1133.08,Carlsberg Uk Ltd
Environmental & Regulatory,Regulatory Services,Housing and Environmental Health ,Supplies & Services,Grants and subscriptions,Capital Grants,21/06/2018,244866,1367.83,Hampshire Mobility Services
Central Services to the Public,Management & Support Services,IT,Supplies & Services,"Equipment, Furniture & Materials",Maintenance Equip + Materials,07/06/2018,241948,1162,Quadrant Security Group Ltd
Central Services to the Public,Management & Support Services,Legal & Democratic,Employees,Indirect Employee Expenses,Agency Staff - Waged Posts,14/06/2018,244281,1216,Venn Group
Central Services to the Public,Management & Support Services,HR Services,Supplies & Services,Services,External Training Consultants,21/06/2018,243990,1295,Yellowday Training Ltd
Cultural & Related,Tourism,Estates and Economic Development ,Premises related Expenditure,Repairs Alterations & Maintenance of Buildings,Planned Maintenance - Non Est,07/06/2018,243705,19.5,Temple Lifts Ltd
Cultural & Related,Culture & Heritage,Estates and Economic Development ,Premises related Expenditure,Repairs Alterations & Maintenance of Buildings,Planned Maintenance - Non Est,07/06/2018,243705,201.5,Temple Lifts Ltd
Cultural & Related,Culture & Heritage,Estates and Economic Development ,Premises related Expenditure,Repairs Alterations & Maintenance of Buildings,Planned Maintenance - Non Est,07/06/2018,243705,19.5,Temple Lifts Ltd
Central Services to the Public,Management & Support Services,Estates and Economic Development ,Premises related Expenditure,Repairs Alterations & Maintenance of Buildings,Planned Maintenance - Non Est,07/06/2018,243705,806,Temple Lifts Ltd
Cultural & Related,Recreation & Sport,Community and Leisure ,Premises related Expenditure,Repairs Alterations & Maintenance of Buildings,Planned Maintenance - Non Est,07/06/2018,243705,201.5,Temple Lifts Ltd
Cultural & Related,Culture & Heritage,Community and Leisure ,Premises related Expenditure,Repairs Alterations & Maintenance of Buildings,Planned Maintenance - Non Est,07/06/2018,243705,49.42,Temple Lifts Ltd
Central Services to the Public,Management & Support Services,Plan Pol & Transport,Supplies & Services,"Equipment, Furniture & Materials",Purchase Equip + Materials,28/06/2018,243667,1318.24,Openreach Bt
External Trading Accounts,Business Parks,Estates and Economic Development ,Supplies & Services,Services,Professional Fees,28/06/2018,245257,1322.8,Winckworth Sherwood
Central Services to the Public,Management & Support Services,Legal & Democratic,Employees,Indirect Employee Expenses,Agency Staff - Waged Posts,07/06/2018,243506,1330,Venn Group
Central Services to the Public,Management & Support Services,Legal & Democratic,Employees,Indirect Employee Expenses,Agency Staff - Waged Posts,07/06/2018,243674,1330,Venn Group
Central Services to the Public,Management & Support Services,Legal & Democratic,Employees,Indirect Employee Expenses,Agency Staff - Waged Posts,28/06/2018,244586,1330,Venn Group
Cultural & Related,Tourism,Estates and Economic Development ,Supplies & Services,Grants & Subscriptions,Subscriptions,07/06/2018,243712,1334,Tourism South East
Central Services to the Public,Management & Support Services,Chief Executive's,Employees,Indirect Employee Expenses,Temporary Staff,21/06/2018,243675,1339.6,Hays Specialist Recruitment
Planning & Development,Economic Development,Estates and Economic Development ,Supplies & Services,Services,Project Consultancy - Policy,28/06/2018,244752,1625,Hampshire County Council
Central Services to the Public,Local Tax Collection,Revenues,Supplies & Services,Miscellaneous Expenses,All Pay Fees,07/06/2018,243912,1419.1,Allpay Limited
Environmental & Regulatory,Waste management,Environmental,Supplies & Services,"Printing, Stationery & General Office Expenses",External Printing,21/06/2018,243893,1427,Bulpitt Print Ltd
Cultural & Related,Culture & Heritage,Community and Leisure ,Supplies & Services,Miscellaneous Expenses,Booking Of Acts,07/06/2018,243671,1442,Avalon Management Group Ltd
Central Services to the Public,Management & Support Services,Chief Executive's,Supplies & Services,"Printing, Stationery & General Office Expenses",Photocopying Costs,07/06/2018,243664,1468.84,Ricoh Uk Ltd
Cultural & Related,Open Spaces,Community and Leisure ,Premises related Expenditure,Grounds Maintenance Costs,Gm - Additional Works,28/06/2018,245231,1470,Kingcombe Aquacare Ltd
Cultural & Related,Tourism,Estates and Economic Development ,Supplies & Services,"Printing, Stationery & General Office Expenses",External Printing,21/06/2018,244737,1605.5,Cammegh Davies Fleming
Central Services to the Public,Management & Support Services,IT,Supplies & Services,"Equipment, Furniture & Materials",IT Supp and Serv AMP,28/06/2018,245080,1500,Nuvola Distribution Ltd
Environmental & Regulatory,Waste management,Environmental,Employees,Indirect Employee Expenses,Agency Staff - Waged Posts,28/06/2018,244283,1505.85,Simple Recruitment Services Ltd
Central Services to the Public,Management & Support Services,Environmental,Transport Related Expenditure,Direct Transport Costs,Repair Materials,07/06/2018,243688,1571.24,T H White Ltd
Central Services to the Public,Management & Support Services,Legal & Democratic,Employees,Indirect Employee Expenses,Agency Staff - Waged Posts,28/06/2018,244585,1575,Venn Group
External Trading Accounts,Business Parks,Estates and Economic Development ,Premises related Expenditure,Repairs Alterations & Maintenance of Buildings,Planned Maintenance - Non Est,14/06/2018,244006,57.71,Healthy Buildings International
External Trading Accounts,Business Parks,Estates and Economic Development ,Premises related Expenditure,Repairs Alterations & Maintenance of Buildings,Planned Maintenance - Non Est,14/06/2018,244006,173.12,Healthy Buildings International
Cultural & Related,Tourism,Estates and Economic Development ,Premises related Expenditure,Repairs Alterations & Maintenance of Buildings,Planned Maintenance - Non Est,14/06/2018,244006,57.7,Healthy Buildings International
Cultural & Related,Culture & Heritage,Estates and Economic Development ,Premises related Expenditure,Repairs Alterations & Maintenance of Buildings,Planned Maintenance - Non Est,14/06/2018,244006,57.7,Healthy Buildings International
Cultural & Related,Culture & Heritage,Estates and Economic Development ,Premises related Expenditure,Repairs Alterations & Maintenance of Buildings,Planned Maintenance - Non Est,14/06/2018,244006,57.71,Healthy Buildings International
Cultural & Related,Culture & Heritage,Estates and Economic Development ,Premises related Expenditure,Repairs Alterations & Maintenance of Buildings,Planned Maintenance - Non Est,14/06/2018,244006,57.71,Healthy Buildings International
Cultural & Related,Culture & Heritage,Estates and Economic Development ,Premises related Expenditure,Repairs Alterations & Maintenance of Buildings,Planned Maintenance - Non Est,14/06/2018,244006,57.71,Healthy Buildings International
Cultural & Related,Culture & Heritage,Estates and Economic Development ,Premises related Expenditure,Repairs Alterations & Maintenance of Buildings,Planned Maintenance - Non Est,14/06/2018,244006,57.71,Healthy Buildings International
Central Services to the Public,Management & Support Services,Estates and Economic Development ,Premises related Expenditure,Repairs Alterations & Maintenance of Buildings,Planned Maintenance - Non Est,14/06/2018,244006,57.7,Healthy Buildings International
Central Services to the Public,Management & Support Services,Estates and Economic Development ,Premises related Expenditure,Repairs Alterations & Maintenance of Buildings,Planned Maintenance - Non Est,14/06/2018,244006,57.71,Healthy Buildings International
Central Services to the Public,Management & Support Services,Estates and Economic Development ,Premises related Expenditure,Repairs Alterations & Maintenance of Buildings,Planned Maintenance - Non Est,14/06/2018,244006,57.7,Healthy Buildings International
Central Services to the Public,Management & Support Services,Estates and Economic Development ,Premises related Expenditure,Repairs Alterations & Maintenance of Buildings,Planned Maintenance - Non Est,14/06/2018,244006,57.71,Healthy Buildings International
Environmental & Regulatory,Regulatory Services,Estates and Economic Development ,Premises related Expenditure,Repairs Alterations & Maintenance of Buildings,Planned Maintenance - Non Est,14/06/2018,244006,115.42,Healthy Buildings International
Cultural & Related,Recreation & Sport,Community and Leisure ,Premises related Expenditure,Repairs Alterations & Maintenance of Buildings,Planned Maintenance - Non Est,14/06/2018,244006,57.71,Healthy Buildings International
Cultural & Related,Recreation & Sport,Community and Leisure ,Premises related Expenditure,Repairs Alterations & Maintenance of Buildings,Planned Maintenance - Non Est,14/06/2018,244006,57.71,Healthy Buildings International
Cultural & Related,Recreation & Sport,Community and Leisure ,Premises related Expenditure,Repairs Alterations & Maintenance of Buildings,Planned Maintenance - Non Est,14/06/2018,244006,57.71,Healthy Buildings International
Cultural & Related,Recreation & Sport,Community and Leisure ,Premises related Expenditure,Repairs Alterations & Maintenance of Buildings,Planned Maintenance - Non Est,14/06/2018,244006,57.71,Healthy Buildings International
Cultural & Related,Recreation & Sport,Community and Leisure ,Premises related Expenditure,Repairs Alterations & Maintenance of Buildings,Planned Maintenance - Non Est,14/06/2018,244006,57.71,Healthy Buildings International
Cultural & Related,Recreation & Sport,Community and Leisure ,Premises related Expenditure,Repairs Alterations & Maintenance of Buildings,Planned Maintenance - Non Est,14/06/2018,244006,57.71,Healthy Buildings International
Cultural & Related,Recreation & Sport,Community and Leisure ,Premises related Expenditure,Repairs Alterations & Maintenance of Buildings,Planned Maintenance - Non Est,14/06/2018,244006,57.71,Healthy Buildings International
Environmental & Regulatory,"Cemetery, Cremation and Mortuary Services",Community and Leisure ,Premises related Expenditure,Repairs Alterations & Maintenance of Buildings,Planned Maintenance - Non Est,14/06/2018,244006,57.71,Healthy Buildings International
Environmental & Regulatory,"Cemetery, Cremation and Mortuary Services",Community and Leisure ,Premises related Expenditure,Repairs Alterations & Maintenance of Buildings,Planned Maintenance - Non Est,14/06/2018,244006,57.71,Healthy Buildings International
Cultural & Related,Open Spaces,Community and Leisure ,Premises related Expenditure,Repairs Alterations & Maintenance of Buildings,Planned Maintenance - Non Est,14/06/2018,244006,57.71,Healthy Buildings International
Cultural & Related,Culture & Heritage,Community and Leisure ,Premises related Expenditure,Repairs Alterations & Maintenance of Buildings,Planned Maintenance - Non Est,14/06/2018,244006,57.71,Healthy Buildings International
"Highways, Roads & Transport",Parking Services,Plan Pol & Transport,Premises related Expenditure,Repairs Alterations & Maintenance of Buildings,Planned Maintenance - Non Est,14/06/2018,244006,57.71,Healthy Buildings International
Planning & Development,Community Development,Community and Leisure ,Supplies & Services,Grants & Subscriptions,Grants,20/06/2018,244786,2000,Andover Nepalese Community
Planning & Development,Community Development,Community and Leisure ,Supplies & Services,Grants & Subscriptions,Grants,21/06/2018,244867,2000,Romsey Town Council
Planning & Development,Community Development,Community and Leisure ,Supplies & Services,Grants & Subscriptions,Grants,06/06/2018,243931,2000,Andover Carnival
Planning & Development,Development Control,Planning & Building,Supplies & Services,"Printing, Stationery & General Office Expenses",Photocopying Costs,07/06/2018,243660,1754.44,Ricoh Uk Ltd
Planning & Development,Economic Development,Estates and Economic Development ,Supplies & Services,Services,Training Courses,28/06/2018,245057,2166,Combined Independent (Holdings) Ltd
Central Services to the Public,Management & Support Services,HR Services,Supplies & Services,Services,Training Courses,28/06/2018,243461,1868.85,Cipd Enterprises Ltd
Environmental & Regulatory,Waste management,Environmental,Employees,Indirect Employee Expenses,Agency Staff - Waged Posts,28/06/2018,245238,1341.12,Golden Orb Solutions
Environmental & Regulatory,Waste management,Environmental,Employees,Indirect Employee Expenses,Agency Staff - Waged Posts,28/06/2018,245238,549.12,Golden Orb Solutions
Central Services to the Public,Management & Support Services,Estates and Economic Development ,Third Party Payments,Other Establishments,Private Contractors,28/06/2018,245355,1892,Doorgear Limited
Cultural & Related,Recreation & Sport,Community and Leisure ,Premises related Expenditure,Grounds Maintenance Costs,Gm - Additional Works,28/06/2018,243459,1914.94,Places For People Leisure Ltd - Developments
Central Services,Corporate & Democratic Core,Corporate & Democratic,Supplies & Services,"Printing, Stationery & General Office Expenses",Licences / Affiliation Fees,21/06/2018,244719,1950.95,The Copyright Licensing Agency Ltd
Cultural & Related,Culture & Heritage,Community and Leisure ,Supplies & Services,Miscellaneous Expenses,Booking Of Acts,07/06/2018,244027,1957.34,Pasadena Roof Orchestra 2012 Ltd
"Highways, Roads & Transport",Public Transport,Plan Pol & Transport,Third Party Payments,Transport Operators in Respect of Concessionary Fares,Voluntary Orgs Reimbursement,21/06/2018,244720,2381,Andover Neighbourcare
"Highways, Roads & Transport",Parking Services,Plan Pol & Transport,Premises related Expenditure,Repairs Alterations & Maintenance of Buildings,Car Park General Repairs,28/06/2018,245072,2471,Aviva Life & Pensions Uk Ltd
Environmental & Regulatory,Regulatory Services,Housing and Environmental Health ,Supplies & Services,Grants and subscriptions,Capital Grants,28/06/2018,245358,2500,Personal data - Data Protection Act 1998
Central Services to the Public,Management & Support Services,Estates and Economic Development ,Supplies & Services,"Equipment, Furniture & Materials",Purchase Materials (Job Cost),07/06/2018,243899,2128.86,Yesss Electrical
Environmental & Regulatory,Regulatory Services,Housing and Environmental Health ,Supplies & Services,Grants and subscriptions,Capital Grants,14/06/2018,244484,2640,Liftech Systems (Se) Ltd
Cultural & Related,Culture & Heritage,Community and Leisure ,Supplies & Services,Miscellaneous Expenses,Booking Of Acts,07/06/2018,244025,2280.6,Off The Kerb Productions
"Highways, Roads & Transport",Parking Services,Plan Pol & Transport,Supplies & Services,Services,Legal Fees,14/06/2018,244479,2800,Hmcs
Central Services to the Public,Management & Support Services,Environmental,Supplies & Services,"Clothes, Uniforms & Laundry",Clothing + Uniforms,28/06/2018,244679,2353.4,Arco Ltd
Cultural & Related,Culture & Heritage,Community and Leisure ,Supplies & Services,Miscellaneous Expenses,Booking Of Acts,28/06/2018,245093,2394.66,Artistes International Management
Planning & Development,Economic Development,Estates and Economic Development ,Supplies & Services,Services,Project Consultancy - Policy,21/06/2018,244846,2500,Economic Modelling Uk Limited
Cultural & Related,Culture & Heritage,Community and Leisure ,Supplies & Services,Miscellaneous Expenses,Booking Of Acts,28/06/2018,245006,2576.66,Sweeney Entertainments
Central Services to the Public,Management & Support Services,Estates and Economic Development ,Supplies & Services,"Equipment, Furniture & Materials",Purchase Materials (Job Cost),07/06/2018,242805,2594.12,Wolseley Uk Limited
Central Services to the Public,Management & Support Services,Plan Pol & Transport,Supplies & Services,"Equipment, Furniture & Materials",Purchase Equip + Materials,28/06/2018,245031,2644.76,Openreach Bt
Central Services to the Public,Management & Support Services,Environmental,Transport Related Expenditure,Direct Transport Costs,Diesel,07/06/2018,243695,2663.5,Wp Group Limited
"Highways, Roads & Transport",Highways and roads - maintenance,Plan Pol & Transport,Premises related Expenditure,Repairs Alterations & Maintenance of Buildings,General Repairs,28/06/2018,243995,2664,Externiture Ltd
Central Services to the Public,Management & Support Services,Chief Executive's,Supplies & Services,"Printing, Stationery & General Office Expenses",Conference Costs,21/06/2018,244773,1090,Local Government Association
Central Services,Corporate & Democratic Core,Corporate & Democratic,Supplies & Services,"Printing, Stationery & General Office Expenses",Conference Costs,21/06/2018,244773,1635,Local Government Association
Planning & Development,Development Control,Planning & Building,Third Party Payments,Commuted Sum,s106 Developer contributions,21/06/2018,244860,3275.29,West Tytherley & Frenchmoor Pc
Planning & Development,Planning Policy,Plan Pol & Transport,Supplies & Services,Services,Project Consultancy - Policy,21/06/2018,243065,3360.3,I-Transport Llp
"Highways, Roads & Transport",Parking Services,Plan Pol & Transport,Premises related Expenditure,Energy Costs,Electricity,28/06/2018,245074,3392.7,Aviva Life & Pensions Uk Ltd
Environmental & Regulatory,Waste management,Environmental,Employees,Indirect Employee Expenses,Agency Staff - Waged Posts,28/06/2018,245236,1706.52,Golden Orb Solutions
Environmental & Regulatory,Waste management,Environmental,Employees,Indirect Employee Expenses,Agency Staff - Waged Posts,28/06/2018,245236,1160.28,Golden Orb Solutions
Environmental & Regulatory,Regulatory Services,Housing and Environmental Health ,Supplies & Services,Grants and subscriptions,Capital Grants,14/06/2018,244490,3530,Liftech Systems (Se) Ltd
Planning & Development,Economic Development,Estates and Economic Development ,Supplies & Services,Services,Training Courses,28/06/2018,245055,3597.9,R&B Industrial Ltd
Environmental & Regulatory,Regulatory Services,Housing and Environmental Health ,Supplies & Services,Grants and subscriptions,Capital Grants,14/06/2018,244489,3669,Bartram Building Maintenance Services
"Highways, Roads & Transport",Parking Services,Plan Pol & Transport,Premises related Expenditure,Repairs Alterations & Maintenance of Buildings,Car Park General Repairs,28/06/2018,245070,3685,Aviva Life & Pensions Uk Ltd
Central Services to the Public,Management & Support Services,Environmental,Transport Related Expenditure,Direct Transport Costs,Diesel,28/06/2018,245083,3077.82,Wp Group Limited
Environmental & Regulatory,Regulatory Services,Housing and Environmental Health ,Supplies & Services,Grants and subscriptions,Capital Grants,14/06/2018,244497,3865,Dolphin Mobility
Cultural & Related,Open Spaces,Community and Leisure ,Premises related Expenditure,Grounds Maintenance Costs,Non Contract Tree Works,21/06/2018,244304,317.85,Gristwood & Toms Ltd
Cultural & Related,Open Spaces,Community and Leisure ,Premises related Expenditure,Grounds Maintenance Costs,Non Contract Tree Works,21/06/2018,244304,1408.52,Gristwood & Toms Ltd
Cultural & Related,Open Spaces,Community and Leisure ,Premises related Expenditure,Repairs Alterations & Maintenance of Buildings,Estates premises costs - AMP,21/06/2018,244304,1686.61,Gristwood & Toms Ltd
Environmental & Regulatory,Regulatory Services,Housing and Environmental Health ,Supplies & Services,Grants and subscriptions,Capital Grants,14/06/2018,244496,4130,Total Hygiene Ltd
Central Services to the Public,Management & Support Services,Environmental,Transport Related Expenditure,Direct Transport Costs,Diesel,28/06/2018,245065,2662.43,Wp Group Limited
Central Services to the Public,Management & Support Services,Environmental,Transport Related Expenditure,Direct Transport Costs,Red Derv,28/06/2018,245065,1097.82,Wp Group Limited
Central Services to the Public,Management & Support Services,Estates and Economic Development ,Third Party Payments,Other Establishments,Private Contractors,21/06/2018,244847,3637.22,Gss Flooring Limited
Central Services to the Public,Management & Support Services,Environmental,Transport Related Expenditure,Direct Transport Costs,Diesel,28/06/2018,245003,3743.6,Wp Group Limited
Environmental & Regulatory,Regulatory Services,Housing and Environmental Health ,Supplies & Services,Grants and subscriptions,Capital Grants,28/06/2018,245360,4551.11,Pcr Construction
Central Services to the Public,Management & Support Services,Estates and Economic Development ,Third Party Payments,Other Establishments,Private Contractors,21/06/2018,244733,3885.68,Jewson Ltd
Environmental & Regulatory,Regulatory Services,Housing and Environmental Health ,Supplies & Services,Grants and subscriptions,Capital Grants,28/06/2018,245359,5000,Personal data - Data Protection Act 1998
Environmental & Regulatory,Regulatory Services,Housing and Environmental Health ,Supplies & Services,Grants and subscriptions,Capital Grants,14/06/2018,244485,5095,Bentley Mobility Services
Environmental & Regulatory,Regulatory Services,Housing and Environmental Health ,Employees,Indirect Employee Expenses,Temporary Staff,07/06/2018,243922,4367.9,Crystal Umbrella
Cultural & Related,Open Spaces,Environmental,Transport Related Expenditure,Direct Transport Costs,Tyres,21/06/2018,244023,193.78,Ats Euromaster Limited
Environmental & Regulatory,Waste management,Environmental,Transport Related Expenditure,Direct Transport Costs,Tyres,21/06/2018,244023,4200.62,Ats Euromaster Limited
Central Services to the Public,Management & Support Services,IT,Supplies & Services,Communications & Computing,Software Maintenance,06/06/2018,243744,5619,Waterford Technologies Ltd
Cultural & Related,Recreation & Sport,Community and Leisure ,Supplies & Services,Services,Professional Fees,28/06/2018,245047,4743,Watts Group Ltd
Central Services to the Public,Management & Support Services,IT,Supplies & Services,"Equipment, Furniture & Materials",IT Supp and Serv AMP,07/06/2018,243655,4918.4,Tet Ltd
Environmental & Regulatory,Regulatory Services,Housing and Environmental Health ,Supplies & Services,Grants and subscriptions,Capital Grants,14/06/2018,244494,5964.3,Acer Renovations Ltd
Environmental & Regulatory,Regulatory Services,Housing and Environmental Health ,Supplies & Services,Grants and subscriptions,Capital Grants,14/06/2018,244488,5976.96,Spc Bathrooms Ltd
Central Services to the Public,Management & Support Services,Environmental,Transport Related Expenditure,Contract Hire and Operating Leases,Officer lease cars,07/06/2018,243733,6090.1,Lex Autolease Ltd
External Trading Accounts,Business Parks,Estates and Economic Development ,Premises related Expenditure,Cleaning and domestic supplies,Contract Cleaning - Non Estates,07/06/2018,243720,207.01,Hi-Spec Facilities Services Plc
Cultural & Related,Culture & Heritage,Estates and Economic Development ,Premises related Expenditure,Cleaning and domestic supplies,Contract Cleaning - Non Estates,07/06/2018,243720,414.02,Hi-Spec Facilities Services Plc
Central Services to the Public,Management & Support Services,Estates and Economic Development ,Premises related Expenditure,Cleaning and domestic supplies,Contract Cleaning - Non Estates,07/06/2018,243720,345.02,Hi-Spec Facilities Services Plc
Environmental & Regulatory,Regulatory Services,Estates and Economic Development ,Premises related Expenditure,Cleaning and domestic supplies,Contract Cleaning - Non Estates,07/06/2018,243720,1932.11,Hi-Spec Facilities Services Plc
Cultural & Related,Recreation & Sport,Community and Leisure ,Premises related Expenditure,Cleaning and domestic supplies,Contract Cleaning - Non Estates,07/06/2018,243720,724.54,Hi-Spec Facilities Services Plc
Cultural & Related,Recreation & Sport,Community and Leisure ,Premises related Expenditure,Cleaning and domestic supplies,Contract Cleaning - Non Estates,07/06/2018,243720,414.02,Hi-Spec Facilities Services Plc
Cultural & Related,Recreation & Sport,Community and Leisure ,Premises related Expenditure,Cleaning and domestic supplies,Contract Cleaning - Non Estates,07/06/2018,243720,414.02,Hi-Spec Facilities Services Plc
Environmental & Regulatory,"Cemetery, Cremation and Mortuary Services",Community and Leisure ,Premises related Expenditure,Cleaning and domestic supplies,Contract Cleaning - Non Estates,07/06/2018,243720,34.5,Hi-Spec Facilities Services Plc
Environmental & Regulatory,"Cemetery, Cremation and Mortuary Services",Community and Leisure ,Premises related Expenditure,Cleaning and domestic supplies,Contract Cleaning - Non Estates,07/06/2018,243720,69,Hi-Spec Facilities Services Plc
Cultural & Related,Open Spaces,Community and Leisure ,Premises related Expenditure,Cleaning and domestic supplies,Contract Cleaning - Non Estates,07/06/2018,243720,724.58,Hi-Spec Facilities Services Plc
"Highways, Roads & Transport",Parking Services,Plan Pol & Transport,Premises related Expenditure,Cleaning and domestic supplies,Contract Cleaning - Non Estates,07/06/2018,243720,103.5,Hi-Spec Facilities Services Plc
External Trading Accounts,Property Investments,Estates and Economic Development ,Supplies & Services,Services,Legal Fees,13/06/2018,244411,6750,Hmrc 
External Trading Accounts,Business Parks,Estates and Economic Development ,Premises related Expenditure,Cleaning and domestic supplies,Contract Cleaning - Non Estates,07/06/2018,243719,207.01,Hi-Spec Facilities Services Plc
Cultural & Related,Culture & Heritage,Estates and Economic Development ,Premises related Expenditure,Cleaning and domestic supplies,Contract Cleaning - Non Estates,07/06/2018,243719,414.02,Hi-Spec Facilities Services Plc
Central Services to the Public,Management & Support Services,Estates and Economic Development ,Premises related Expenditure,Cleaning and domestic supplies,Contract Cleaning - Non Estates,07/06/2018,243719,345.02,Hi-Spec Facilities Services Plc
Environmental & Regulatory,Regulatory Services,Estates and Economic Development ,Premises related Expenditure,Cleaning and domestic supplies,Contract Cleaning - Non Estates,07/06/2018,243719,1932.13,Hi-Spec Facilities Services Plc
Cultural & Related,Recreation & Sport,Community and Leisure ,Premises related Expenditure,Cleaning and domestic supplies,Contract Cleaning - Non Estates,07/06/2018,243719,724.55,Hi-Spec Facilities Services Plc
Cultural & Related,Recreation & Sport,Community and Leisure ,Premises related Expenditure,Cleaning and domestic supplies,Contract Cleaning - Non Estates,07/06/2018,243719,658.76,Hi-Spec Facilities Services Plc
Cultural & Related,Recreation & Sport,Community and Leisure ,Premises related Expenditure,Cleaning and domestic supplies,Contract Cleaning - Non Estates,07/06/2018,243719,658.76,Hi-Spec Facilities Services Plc
Environmental & Regulatory,"Cemetery, Cremation and Mortuary Services",Community and Leisure ,Premises related Expenditure,Cleaning and domestic supplies,Contract Cleaning - Non Estates,07/06/2018,243719,34.5,Hi-Spec Facilities Services Plc
Environmental & Regulatory,"Cemetery, Cremation and Mortuary Services",Community and Leisure ,Premises related Expenditure,Cleaning and domestic supplies,Contract Cleaning - Non Estates,07/06/2018,243719,69,Hi-Spec Facilities Services Plc
Cultural & Related,Open Spaces,Community and Leisure ,Premises related Expenditure,Cleaning and domestic supplies,Contract Cleaning - Non Estates,07/06/2018,243719,724.55,Hi-Spec Facilities Services Plc
"Highways, Roads & Transport",Parking Services,Plan Pol & Transport,Premises related Expenditure,Cleaning and domestic supplies,Contract Cleaning - Non Estates,07/06/2018,243719,103.5,Hi-Spec Facilities Services Plc
External Trading Accounts,Property Investments,Estates and Economic Development ,Supplies & Services,Services,Legal Fees,20/06/2018,244789,7250,Hm Revenue & Customs
Cultural & Related,Open Spaces,Community and Leisure ,Supplies & Services,"Equipment, Furniture & Materials",Purchase Equip + Materials,14/06/2018,243916,6226.8,Downs View Nurseries Ltd
Central Services to the Public,Management & Support Services,Finance,Supplies & Services,"Printing, Stationery & General Office Expenses",Postage Costs,14/06/2018,244310,7500,Pitney Bowes Limited
Planning & Development,Development Control,Planning & Building,Third Party Payments,Commuted Sum,s106 Developer contributions,21/06/2018,244856,7670.3,Ampfield Parish Council
Planning & Development,Development Control,Planning & Building,Supplies & Services,Services,Project Consultancy - Policy,21/06/2018,244731,6500,Bnp Paribas Real Estate & Property Mgt Uk Ltd
External Trading Accounts,Property Investments,Estates and Economic Development ,Third Party Payments,Private contractors,Main Contractor Costs,28/06/2018,245044,9086.14,Safespec Building Services Ltd
Cultural & Related,Recreation & Sport,Community and Leisure ,Premises related Expenditure,Water Services,Water And Sewerage Charges,14/06/2018,244059,7950,Total Swimming Ltd
Cultural & Related,Recreation & Sport,Community and Leisure ,Supplies & Services,"Equipment, Furniture & Materials",Purchase Equip + Materials,07/06/2018,243902,7950,Total Swimming Ltd
Planning & Development,Building Control,Planning & Building,Transport Related Expenditure,Contract Hire and Operating Leases,Officer lease cars,07/06/2018,244011,2999.94,Arval Uk Ltd
Planning & Development,Building Control,Planning & Building,Transport Related Expenditure,Contract Hire and Operating Leases,Officer lease cars,07/06/2018,244011,2999.94,Arval Uk Ltd
Planning & Development,Building Control,Planning & Building,Transport Related Expenditure,Contract Hire and Operating Leases,Officer lease cars,07/06/2018,244011,2999.94,Arval Uk Ltd
Environmental & Regulatory,Regulatory Services,Housing and Environmental Health ,Supplies & Services,Grants and subscriptions,Capital Grants,14/06/2018,244495,7000,Personal data - Data Protection Act 1998
Environmental & Regulatory,Regulatory Services,Housing and Environmental Health ,Supplies & Services,Grants and subscriptions,Capital Grants,14/06/2018,244495,3000,Personal data - Data Protection Act 1998
Housing Services,Homelessness,Housing and Environmental Health ,Supplies & Services,Grants & Subscriptions,Grants,14/06/2018,244024,10578,Two Saints
Environmental & Regulatory,Waste management,Environmental,Supplies & Services,"Equipment, Furniture & Materials",Purchase Equip + Materials,14/06/2018,244010,9300,Craemer Uk Ltd
Environmental & Regulatory,Waste management,Environmental,Supplies & Services,"Equipment, Furniture & Materials",Purchase Equip + Materials,14/06/2018,244045,9300,Craemer Uk Ltd
Central Services to the Public,Management & Support Services,Environmental,Transport Related Expenditure,Direct Transport Costs,Diesel,28/06/2018,245020,9850.46,Wp Group Limited
Cultural & Related,Culture & Heritage,Community and Leisure ,Supplies & Services,Services,Project Consultancy - Policy,07/06/2018,244047,10000,Personal data - Data Protection Act 1998
Planning & Development,Community Development,Community and Leisure ,Supplies & Services,Grants & Subscriptions,Grants,07/06/2018,244033,13229,Unity For Transport
Central Services to the Public,Management & Support Services,Environmental,Transport Related Expenditure,Direct Transport Costs,Diesel,28/06/2018,245066,9639.13,Wp Group Limited
Central Services to the Public,Management & Support Services,Environmental,Transport Related Expenditure,Direct Transport Costs,Red Derv,28/06/2018,245066,1924.8,Wp Group Limited
Cultural & Related,Recreation & Sport,Community and Leisure ,Premises related Expenditure,Grounds Maintenance Costs,Gm - Additional Works,21/06/2018,244775,12125,White Horse Contractors Ltd
Environmental & Regulatory,Regulatory Services,Housing and Environmental Health ,Supplies & Services,Grants and subscriptions,Capital Grants,21/06/2018,244868,15079.5,The Platform Lift Co. Ltd
Cultural & Related,Recreation & Sport,Community and Leisure ,Supplies & Services,Grants and subscriptions,Capital Grants,20/06/2018,244778,17989.2,Wellow School Association
Central Services to the Public,Management & Support Services,Environmental,Transport Related Expenditure,Direct Transport Costs,Vehicles and Plant,07/06/2018,243691,14643.31,Westover Group Ltd
Central Services to the Public,Management & Support Services,Environmental,Transport Related Expenditure,Direct Transport Costs,Vehicles and Plant,07/06/2018,243692,14643.31,Westover Group Ltd
Central Services to the Public,Management & Support Services,Environmental,Transport Related Expenditure,Direct Transport Costs,Vehicles and Plant,07/06/2018,243693,14643.31,Westover Group Ltd
Central Services to the Public,Management & Support Services,Environmental,Transport Related Expenditure,Direct Transport Costs,Vehicles and Plant,07/06/2018,243694,14643.31,Westover Group Ltd
Central Services to the Public,Management & Support Services,Estates and Economic Development ,Transport Related Expenditure,Direct Transport Costs,Licences,07/06/2018,243691,55,Westover Group Ltd
Environmental & Regulatory,Waste management,Environmental,Transport Related Expenditure,Direct Transport Costs,Licences,07/06/2018,243692,55,Westover Group Ltd
Environmental & Regulatory,Waste management,Environmental,Transport Related Expenditure,Direct Transport Costs,Licences,07/06/2018,243693,55,Westover Group Ltd
Environmental & Regulatory,Waste management,Environmental,Transport Related Expenditure,Direct Transport Costs,Licences,07/06/2018,243694,55,Westover Group Ltd
Cultural & Related,Recreation & Sport,Community and Leisure ,Premises related Expenditure,Repairs Alterations & Maintenance of Buildings,Estates premises costs - AMP,21/06/2018,244766,16049.13,White Horse Contractors Ltd
Central Services to the Public,Management & Support Services,Estates and Economic Development ,Premises related Expenditure,Repairs Alterations & Maintenance of Buildings,Building Maint - Non Estates,28/06/2018,245041,660,Safespec Building Services Ltd
Central Services to the Public,Management & Support Services,Estates and Economic Development ,Premises related Expenditure,Repairs Alterations & Maintenance of Buildings,Estates premises costs - AMP,28/06/2018,245041,20570,Safespec Building Services Ltd
Central Services to the Public,Management & Support Services,IT,Support Services,IT,IT Hardware costs,07/06/2018,243743,15390,Phoenix Software Ltd
Central Services to the Public,Management & Support Services,IT,Supplies & Services,Communications & Computing,Software Maintenance,07/06/2018,243743,10374.75,Phoenix Software Ltd
Cultural & Related,Recreation & Sport,Community and Leisure ,Third Party Payments,Other Establishments,ALC Management Contract-TVL,14/06/2018,244477,44142,Places For People Leisure Ltd - Developments
Planning & Development,Development Control,Planning & Building,Third Party Payments,Commuted Sum,s106 Developer contributions,21/06/2018,244031,44158.53,Nhs West Hampshire Ccg
Central Services to the Public,Management & Support Services,Plan Pol & Transport,Premises related Expenditure,Repairs Alterations & Maintenance of Buildings,General Repairs,21/06/2018,243676,52150.18,Colas Ltd
Cultural & Related,Open Spaces,Community and Leisure ,Premises related Expenditure,Repairs Alterations & Maintenance of Buildings,Estates premises costs - AMP,07/06/2018,244069,86211.72,Five Rivers Environmental Contracting Ltd
External Trading Accounts,Property Investments,Estates and Economic Development ,Supplies & Services,Services,Legal Fees,21/06/2018,244855,195000,Middletons
Cultural & Related,Recreation & Sport,Community and Leisure ,Third Party Payments,Private contractors,Main Contractor Costs,14/06/2018,244478,313899.05,Places For People Leisure Ltd - Developments
Cultural & Related,Recreation & Sport,Community and Leisure ,Third Party Payments,Private contractors,Main Contractor Costs,14/06/2018,244293,1020096.5,Places For People Leisure Ltd - Developments
